fUSD/lending_fUSD_20240520
["ID","MTS","AMOUNT","RATE_DAILY","PERIOD"]
[327571905,1716238264872,-151.0,0.000425,14]
[327571906,1716238264880,-151.0,0.000425,14]
[327571907,1716238264889,-151.0,0.000425,14]
[327571908,1716238264898,-151.0,0.000425,14]
[327571909,1716238264907,-151.0,0.000425,14]
[327571910,1716238264916,-648.860738,0.000425,14]
[327571911,1716238264925,-151.0,0.000425,14]
[327571912,1716238264934,-648.860738,0.000425,14]
[327571913,1716238264943,-151.0,0.000425,14]
[327571914,1716238264952,-151.0,0.000425,14]
[327571915,1716238264961,-155.883838,0.000425,14]
[327571916,1716238264971,-155.883838,0.000425,14]
[327571917,1716238264980,-348.368327,0.000425,14]
[327571918,1716238264991,-348.368327,0.000425,14]
[327571919,1716238265000,-151.0,0.000425,14]
[327571920,1716238265009,-151.0,0.000425,14]
[327571921,1716238265019,-151.0,0.000425,14]
[327571922,1716238265029,-151.0,0.000425,14]
[327571923,1716238265038,-151.0,0.000425,14]
[327571924,1716238265048,-151.0,0.000425,14]
[327571925,1716238265057,-153.533141,0.000425,14]
[327571926,1716238265067,-299.456999,0.000425,14]
[327571927,1716238265076,-299.456999,0.000425,14]
[327571928,1716238265086,-153.533141,0.000425,14]
[327571929,1716238265096,-151.0,0.000425,14]
[327571930,1716238265105,-151.0,0.000425,14]
[327571931,1716238265115,-151.0,0.000425,14]
[327571932,1716238265124,-299.860395,0.000425,14]
[327571933,1716238265133,-299.860395,0.000425,14]
[327571934,1716238265143,-151.0,0.000425,14]
[327571935,1716238265152,-151.0,0.000425,14]
[327571936,1716238265162,-151.0,0.000425,14]
[327571937,1716238265171,-151.0,0.000425,14]
[327571938,1716238265181,-151.0,0.000425,14]
[327571939,1716238265191,-151.0,0.000425,14]
[327571940,1716238265200,-309.544549,0.000425,14]
[327571941,1716238265210,-258.247831,0.000425,14]
[327571942,1716238265219,-151.0,0.000425,14]
[327571943,1716238265229,-309.544549,0.000425,14]
[327571944,1716238265241,-258.247831,0.000425,14]
[327571945,1716238265250,-151.0,0.000425,14]
[327571946,1716238265259,-324.726006,0.000425,14]
[327571947,1716238265268,-324.726006,0.000425,14]
[327571948,1716238265277,-758.851273,0.000425,14]
[327571949,1716238265286,-151.0,0.000425,14]
[327571950,1716238265295,-151.0,0.000425,14]
[327571951,1716238265306,-758.851273,0.000425,14]
[327571952,1716238265316,-151.0,0.000425,14]
[327571953,1716238265325,-151.0,0.000425,14]
[327571954,1716238265335,-151.0,0.000425,14]
[327571955,1716238265344,-151.0,0.000425,14]
[327571956,1716238265354,-151.0,0.000425,14]
[327571957,1716238265363,-151.0,0.000425,14]
[327571958,1716238265372,-151.0,0.000425,14]
[327571959,1716238265382,-155.642765,0.000425,14]
[327571960,1716238265391,-155.642765,0.000425,14]
[327571961,1716238265400,-151.0,0.000425,14]
[327571962,1716238265410,-523.471196,0.000425,14]
[327571963,1716238265422,-2606.193622,0.000425,14]
[327571964,1716238265434,-523.471196,0.000425,14]
[327571965,1716238265443,-2606.193622,0.000425,14]
[327571966,1716238265453,-151.0,0.000425,14]
[327571967,1716238265463,-151.0,0.000425,14]
[327571968,1716238265473,-151.0,0.000425,14]
[327571969,1716238265482,-151.0,0.000425,14]
[327571970,1716238265497,-205.222801,0.000425,14]
[327571971,1716238265508,-205.222801,0.000425,14]
[327571972,1716238265517,-151.0,0.000425,14]
[327571973,1716238265526,-459.884371,0.000425,14]
[327571974,1716238265535,-1032.12148,0.000425,14]
[327571975,1716238265544,-459.884371,0.000425,14]
[327571976,1716238265553,-1032.12148,0.000425,14]
[327571977,1716238265563,-276.847444,0.000425,14]
[327571978,1716238265572,-276.847444,0.000425,14]
[327571979,1716238265582,-342.878346,0.000425,14]
[327571980,1716238265591,-342.878346,0.000425,14]
[327571981,1716238265601,-151.0,0.000425,14]
[327571982,1716238265610,-151.0,0.000425,14]
[327571983,1716238265620,-182.326443,0.000425,14]
[327571984,1716238265630,-1000000.0,0.000425,60]
[327571985,1716238265639,-2104.41,0.000425,32]
[327571986,1716238265648,-1700.85,0.00042596,30]
[327571987,1716238265658,-1700.85,0.00042596,30]
[327571988,1716238265667,-1700.85,0.00042596,30]
[327571989,1716238265678,-1700.85,0.00042596,30]
[327571990,1716238265688,-314.052018,0.00042648,52]
[327571991,1716238265699,-9809.80298386,0.00042655,7]
[327571992,1716238265710,-3246.02484438,0.00042655,7]
[327571993,1716238265720,-698.4335131,0.00042655,7]
[327571994,1716238265730,-1967.4175818,0.00042655,7]
[327571995,1716238265743,-2136.0,0.000427,92]
[327571996,1716238265752,-314.052018,0.00042748,50]
[327571997,1716238265761,-150.85608182,0.00042769,8]
[327571998,1716238265770,-3615.58453862,0.00042769,2]
[327571999,1716238265779,-694.80187143,0.00042769,2]
[327572000,1716238265789,-168.67349142,0.00042769,2]
[327572001,1716238265798,-1249.03609469,0.00042769,2]
[327572002,1716238265807,-300.0,0.00042799,10]
[327572003,1716238265816,-300.0,0.00042799,10]
[327572004,1716238265825,-300.0,0.00042799,10]
[327572005,1716238265834,-300.0,0.00042799,10]
[327572006,1716238265844,-1000000.22548579,0.000428,60]
[327572007,1716238265853,-1700.85,0.00042869,30]
[327572008,1716238265862,-1700.85,0.00042869,30]
[327572009,1716238265872,-400.0,0.000429,15]
[327572010,1716238265881,-500.0,0.00042973,2]
[327572011,1716238265890,-308.28359419,0.00042992,120]
[327572012,1716238265899,-300.0,0.00042999,10]
[327572013,1716238265909,-300.0,0.00042999,10]
[327572014,1716238265918,-300.0,0.00042999,10]
[327572015,1716238265927,-150.0,0.00042999,7]
[327572016,1716238265938,-50000.0,0.00043,23]
[327572017,1716238265947,-8334.03572925,0.00043,33]
[327572018,1716238265965,-2901.17999991,0.00043,33]
[327572019,1716238266247,-351.8,0.00035912,2]
[327572020,1716238266256,-250.72,0.00036734,2]
[327572021,1716238266266,-2875.73,0.00043,33]
[327572022,1716238266278,-9287.87419606,0.00043,33]
[327572023,1716238266289,-349.229994,0.00043,33]
[327572024,1716238266301,-866.0500002,0.00043,33]
[327572025,1716238267756,-316.05753721,0.00021918,2]
[327572026,1716238267901,-1683.94246279,0.00021918,2]
[327572027,1716238267911,-387.05071317,0.00027639,2]
[327572028,1716238267920,-150.0,0.00035912,2]
[327572029,1716238267930,-150.0,0.00035912,2]
[327572030,1716238267939,-471.845673,0.00036035,7]
[327572031,1716238267949,-471.845673,0.0003888,14]
[327572032,1716238267959,-471.845673,0.000399,14]
[327572033,1716238267968,-471.845673,0.00041096,14]
[327572034,1716238267978,-471.845673,0.000425,14]
[327572035,1716238267991,-25385.90008058,0.00043,33]
[327572036,1716238268001,-750.0,0.00043,120]
[327572037,1716238268011,-500.0,0.00043,120]
[327572038,1716238268021,-350.0,0.00043,30]
[327572039,1716238268030,-435.98668863,0.00043,30]
[327572040,1716238268040,-165.54029945,0.00043,2]
[327572041,1716238268050,-10000.0,0.00043,30]
[327572042,1716238268059,-151.0,0.00043,7]
[327572043,1716238268069,-151.0,0.00043,14]
[327572044,1716238268079,-151.0,0.00043,14]
[327572045,1716238268088,-151.0,0.00043,14]
[327572046,1716238268098,-152.56202,0.00043,14]
[327572047,1716238268107,-151.0,0.00043,14]
[327572048,1716238268117,-151.0,0.00043,14]
[327572049,1716238268127,-156.033495,0.00043,14]
[327572050,1716238268137,-151.0,0.00043,14]
[327572051,1716238268147,-353.881301,0.00043,14]
[327572052,1716238268157,-352.43775,0.00043,14]
[327572053,1716238268166,-151.0,0.00043,14]
[327572054,1716238268176,-204.842037,0.00043,14]
[327572055,1716238268185,-204.842037,0.00043,14]
[327572056,1716238268195,-2300.0,0.00043,2]
[327572057,1716238268204,-151.0,0.00043,14]
[327572058,1716238268214,-151.0,0.00043,14]
[327572059,1716238268223,-151.0,0.00043,14]
[327572060,1716238268233,-263.116866,0.00043,14]
[327572061,1716238268245,-151.0,0.00043,14]
[327572062,1716238268255,-648.860738,0.00043,14]
[327572063,1716238268264,-151.0,0.00043,14]
[327572064,1716238268274,-648.860738,0.00043,14]
[327572065,1716238268283,-151.0,0.00043,14]
[327572066,1716238268293,-151.0,0.00043,14]
[327572067,1716238268303,-155.883838,0.00043,14]
[327572068,1716238268313,-155.883838,0.00043,14]
[327572069,1716238268322,-348.368327,0.00043,14]
[327572070,1716238268332,-348.368327,0.00043,14]
[327572071,1716238268342,-151.0,0.00043,14]
[327572072,1716238268352,-151.0,0.00043,14]
[327572073,1716238268363,-151.0,0.00043,14]
[327572074,1716238268373,-151.0,0.00043,14]
[327572075,1716238268383,-151.0,0.00043,14]
[327572076,1716238268395,-257.279502,0.00043,14]
[327572077,1716238268469,-299.456999,0.00043,14]
[327572078,1716238268479,-153.533141,0.00043,14]
[327572079,1716238268491,-299.456999,0.00043,14]
[327572080,1716238268501,-153.533141,0.00043,14]
[327572081,1716238268511,-151.0,0.00043,14]
[327572082,1716238268521,-151.0,0.00043,14]
[327572083,1716238268530,-151.0,0.00043,14]
[327572084,1716238268540,-299.860395,0.00043,14]
[327572085,1716238268550,-299.860395,0.00043,14]
[327572086,1716238268560,-151.0,0.00043,14]
[327572087,1716238268569,-151.0,0.00043,14]
[327572088,1716238268580,-290.72211,0.00043,14]
[327572089,1716238268589,-151.0,0.00043,14]
[327572090,1716238268600,-151.0,0.00043,14]
[327572091,1716238268610,-151.0,0.00043,14]
[327572092,1716238268619,-309.544549,0.00043,14]
[327572093,1716238268628,-258.247831,0.00043,14]
[327572094,1716238268638,-151.0,0.00043,14]
[327572095,1716238268648,-309.544549,0.00043,14]
[327572096,1716238268657,-258.247831,0.00043,14]
[327572097,1716238268667,-211.878045,0.00043,14]
[327572098,1716238268676,-324.726006,0.00043,14]
[327572099,1716238268686,-324.726006,0.00043,14]
[327572100,1716238268695,-758.851273,0.00043,14]
[327572101,1716238268704,-151.0,0.00043,14]
[327572102,1716238268713,-151.0,0.00043,14]
[327572103,1716238268723,-758.851273,0.00043,14]
[327572104,1716238268732,-151.0,0.00043,14]
[327572105,1716238268749,-151.0,0.00043,14]
[327572106,1716238268759,-151.0,0.00043,14]
[327572107,1716238268768,-151.0,0.00043,14]
[327572108,1716238268779,-151.0,0.00043,14]
[327572109,1716238268789,-151.0,0.00043,14]
[327572110,1716238268798,-151.0,0.00043,14]
[327572111,1716238268808,-155.642765,0.00043,14]
[327572112,1716238268817,-155.642765,0.00043,14]
[327572113,1716238268827,-151.0,0.00043,14]
[327572114,1716238268836,-523.471196,0.00043,14]
[327572115,1716238268845,-2606.193622,0.00043,14]
[327572116,1716238268855,-523.471196,0.00043,14]
[327572117,1716238268864,-2606.193622,0.00043,14]
[327572118,1716238268873,-685.61,0.00043,7]
[327572119,1716238268883,-151.0,0.00043,14]
[327572120,1716238268894,-713.17,0.00043,7]
[327572121,1716238268903,-232.547834,0.00043,14]
[327572122,1716238268912,-151.0,0.00043,14]
[327572123,1716238268922,-11359.48941931,0.00043,7]
[327572124,1716238268931,-152.180005,0.00043,14]
[327572125,1716238268941,-205.222801,0.00043,14]
[327572126,1716238268951,-13071.40773714,0.00043,7]
[327572127,1716238268960,-205.222801,0.00043,14]
[327572128,1716238268970,-5417.53276989,0.00043,7]
[327572129,1716238268979,-2150.55104257,0.00043,7]
[327572130,1716238270359,-1590.93812007,0.00043,7]
[327572131,1716238270369,-5139.51714581,0.00043,7]
[327572132,1716238270379,-151.0,0.00043,14]
[327572133,1716238270389,-459.884371,0.00043,14]
[327572134,1716238270398,-1032.12148,0.00043,14]
[327572135,1716238270407,-459.884371,0.00043,14]
[327572136,1716238270421,-1032.12148,0.00043,14]
[327572137,1716238270431,-276.847444,0.00043,14]
[327572138,1716238270440,-276.847444,0.00043,14]
[327572139,1716238270449,-342.878346,0.00043,14]
[327572140,1716238270459,-342.878346,0.00043,14]
[327572141,1716238270468,-151.0,0.00043,14]
[327572142,1716238270478,-198.176141,0.00043,14]
[327572143,1716238270489,-471.845673,0.00043,14]
[327572144,1716238270499,-708.79250525,0.00043104,7]
[327572145,1716238270512,-9101.01047861,0.00043104,7]
[327572146,1716238270522,-3246.02484438,0.00043104,7]
[327572147,1716238270531,-698.4335131,0.00043104,7]
[327572148,1716238270540,-1967.4175818,0.00043104,7]
[327572149,1716238270549,-150.0,0.00043115,2]
[327572150,1716238270559,-1700.85,0.00043142,30]
[327572151,1716238270568,-1700.85,0.00043142,30]
[327572152,1716238270577,-314.052018,0.00043148,52]
[327572153,1716238270587,-19586.89438401,0.00043171,17]
[327572154,1716238270597,-403.85588459,0.000433,60]
[327572155,1716238270606,-1700.85,0.00043415,30]
[327572156,1716238270615,-1700.85,0.00043415,30]
[327572157,1716238270624,-314.052018,0.00043448,52]
[327572158,1716238270634,-150.0,0.00043468,120]
[327572159,1716238270643,-988.0,0.00043498,22]
[327572160,1716238270652,-150.0,0.0004351,15]
[327572161,1716238270662,-9809.80298386,0.00043553,7]
[327572162,1716238270671,-3246.02484438,0.00043553,7]
[327572163,1716238270680,-698.4335131,0.00043553,7]
[327572164,1716238270689,-1967.4175818,0.00043553,7]
[327572165,1716238270699,-517.42352267,0.00043618,2]
[327572166,1716238270708,-314.052018,0.00043648,54]
[327572167,1716238270717,-1700.85,0.00043689,30]
[327572168,1716238270726,-1700.85,0.00043689,30]
[327572169,1716238270738,-150.0,0.00043696,120]
[327572170,1716238270747,-11378.27861165,0.00043735,2]
[327572171,1716238270756,-226.05078317,0.00043735,61]
[327572172,1716238270766,-2617.54872489,0.00043735,2]
[327572173,1716238270776,-314.052018,0.00043748,52]
[327572174,1716238270785,-891.52775915,0.00043768,30]
[327572175,1716238270794,-3858.89771904,0.00043779,60]
[327572176,1716238270805,-1282.52178714,0.00043779,60]
[327572177,1716238270815,-40448.47858384,0.0004378,30]
[327572178,1716238271134,-135725.75141616,0.0004378,30]
[327572179,1716238271143,-357.66978277,0.000438,2]
[327572180,1716238271153,-299.75128479,0.00043835,2]
[327572181,1716238271163,-526.20064568,0.00043835,30]
[327572182,1716238271172,-500.0,0.00043835,30]
[327572183,1716238271183,-229.82403884,0.00043835,30]
[327572184,1716238271192,-243.23691387,0.00043835,30]
[327572185,1716238271201,-500.0,0.00043835,30]
[327572186,1716238271210,-500.0,0.00043835,30]
[327572187,1716238271219,-500.0,0.00043835,30]
[327572188,1716238271228,-517.20660474,0.00043835,30]
[327572189,1716238271240,-500.0,0.00043835,30]
[327572190,1716238271249,-500.0,0.00043835,30]
[327572191,1716238271259,-500.0,0.00043835,30]
[327572192,1716238271269,-517.85854031,0.00043835,30]
[327572193,1716238271278,-500.0,0.00043835,30]
[327572194,1716238271288,-520.81657983,0.00043835,30]
[327572195,1716238271297,-500.0,0.00043835,30]
[327572196,1716238271307,-500.0,0.00043835,30]
[327572197,1716238271317,-504.06223891,0.00043835,30]
[327572198,1716238271326,-500.0,0.00043835,30]
[327572199,1716238271336,-500.0,0.00043835,30]
[327572200,1716238271345,-590.08722483,0.00043835,30]
[327572201,1716238271355,-500.0,0.00043835,30]
[327572202,1716238271364,-500.0,0.00043835,30]
[327572203,1716238271373,-500.0,0.00043835,30]
[327572204,1716238271382,-500.0,0.00043835,30]
[327572205,1716238271391,-500.0,0.00043835,30]
[327572206,1716238271400,-500.0,0.00043835,30]
[327572207,1716238271409,-500.0,0.00043835,30]
[327572208,1716238271423,-500.0,0.00043835,30]
[327572209,1716238271433,-500.0,0.00043835,30]
[327572210,1716238271443,-500.0,0.00043835,30]
[327572211,1716238271452,-500.0,0.00043835,30]
[327572212,1716238271463,-221.87906488,0.00043835,30]
[327572213,1716238271472,-592.70872807,0.00043835,30]
[327572214,1716238271483,-500.0,0.00043835,30]
[327572215,1716238271499,-500.0,0.00043835,30]
[327572216,1716238271509,-500.0,0.00043835,30]
[327572217,1716238271517,-503.37040656,0.00043835,30]
[327572218,1716238271526,-322.20684149,0.00043835,2]
[327572219,1716238271535,-500.0,0.00043835,30]
[327572220,1716238271544,-500.33745745,0.00043835,30]
[327572221,1716238271553,-500.0,0.00043835,30]
[327572222,1716238271563,-500.0,0.00043835,30]
[327572223,1716238271573,-500.0,0.00043835,30]
[327572224,1716238271582,-500.0,0.00043835,30]
[327572225,1716238271591,-500.0,0.00043835,30]
[327572226,1716238271601,-392.57641961,0.00043835,30]
[327572227,1716238271611,-500.0,0.00043835,30]
[327572228,1716238271621,-508.16373217,0.00043835,30]
[327572229,1716238271631,-500.0,0.00043835,30]
[327572230,1716238271640,-500.0,0.00043835,30]
[327572231,1716238271651,-151.0,0.00043835,7]
[327572232,1716238271660,-500.0,0.00043835,30]
[327572233,1716238271670,-504.43486994,0.00043835,30]
[327572234,1716238271679,-500.0,0.00043835,30]
[327572235,1716238271688,-541.77,0.00043835,30]
[327572236,1716238271697,-500.0,0.00043835,30]
[327572237,1716238271706,-500.0,0.00043835,30]
[327572238,1716238271716,-545.29,0.00043835,30]
[327572239,1716238271725,-503.90186711,0.00043835,30]
[327572240,1716238271734,-500.0,0.00043835,30]
[327572241,1716238271747,-500.0,0.00043835,30]
[327572242,1716238271756,-500.0,0.00043835,30]
[327572243,1716238271764,-500.0,0.00043835,30]
[327572244,1716238271774,-542.8371404,0.00043835,30]
[327572245,1716238271782,-500.0,0.00043835,30]
[327572246,1716238271792,-500.0,0.00043835,30]
[327572247,1716238271801,-327.10154609,0.00043835,30]
[327572248,1716238271810,-527.26988211,0.00043835,30]
[327572249,1716238271819,-500.0,0.00043835,30]
[327572250,1716238271829,-500.0,0.00043835,30]
[327572251,1716238271838,-577.86679906,0.00043835,30]
[327572252,1716238271849,-512.71672221,0.00043835,30]
[327572253,1716238271860,-500.0,0.00043835,30]
[327572254,1716238271869,-798.36,0.00043835,30]
[327572255,1716238271880,-500.0,0.00043835,30]
[327572256,1716238271892,-500.0,0.00043835,30]
[327572257,1716238271901,-151.0,0.00043835,14]
[327572258,1716238271910,-500.0,0.00043835,30]
[327572259,1716238271919,-500.0,0.00043835,30]
[327572260,1716238271928,-500.0,0.00043835,30]
[327572261,1716238271938,-500.0,0.00043835,20]
[327572262,1716238271947,-500.0,0.00043835,30]
[327572263,1716238271956,-384.73727239,0.00043835,4]
[327572264,1716238271966,-500.0,0.00043835,30]
[327572265,1716238271975,-523.34892789,0.00043835,31]
[327572266,1716238271986,-500.0,0.00043835,30]
[327572267,1716238271997,-505.12970843,0.00043835,30]
[327572268,1716238272006,-500.0,0.00043835,30]
[327572269,1716238272015,-500.0,0.00043835,30]
[327572270,1716238272025,-500.0,0.00043835,30]
[327572271,1716238272034,-500.0,0.00043835,30]
[327572272,1716238272044,-533.13969876,0.00043835,30]
[327572273,1716238272053,-442.84422324,0.00043835,30]
[327572274,1716238272064,-500.0,0.00043835,30]
[327572275,1716238272074,-517.37596941,0.00043835,30]
[327572276,1716238272083,-525.72164758,0.00043835,30]
[327572277,1716238272092,-500.0,0.00043835,30]
[327572278,1716238272101,-500.0,0.00043835,30]
[327572279,1716238272111,-500.0,0.00043835,30]
[327572280,1716238272120,-500.0,0.00043835,30]
[327572281,1716238272130,-500.0,0.00043835,30]
[327572282,1716238272139,-500.0,0.00043835,30]
[327572283,1716238272148,-500.0,0.00043835,30]
[327572284,1716238272158,-500.0,0.00043835,30]
[327572285,1716238272167,-500.0,0.00043835,30]
[327572286,1716238272177,-500.0,0.00043835,30]
[327572287,1716238272186,-500.0,0.00043835,30]
[327572288,1716238272196,-500.0,0.00043835,30]
[327572289,1716238272207,-500.0,0.00043835,30]
[327572290,1716238272217,-503.5683514,0.00043835,30]
[327572291,1716238272227,-515.64233545,0.00043835,30]
[327572292,1716238272237,-500.0,0.00043835,30]
[327572293,1716238272250,-500.0,0.00043835,30]
[327572294,1716238272259,-500.0,0.00043835,30]
[327572295,1716238272269,-678.33,0.00043835,30]
[327572296,1716238272278,-763.91,0.00043835,30]
[327572297,1716238272287,-500.0,0.00043835,30]
[327572298,1716238272296,-500.0,0.00043835,30]
[327572299,1716238272305,-500.0,0.00043835,30]
[327572300,1716238272314,-500.0,0.00043835,30]
[327572301,1716238272323,-500.0,0.00043835,30]
[327572302,1716238272333,-517.58870419,0.00043835,30]
[327572303,1716238272343,-500.0,0.00043835,30]
[327572304,1716238272352,-184.61974822,0.00043835,30]
[327572305,1716238272362,-500.0,0.00043835,30]
[327572306,1716238272371,-514.69128075,0.00043835,30]
[327572307,1716238272381,-500.0,0.00043835,30]
[327572308,1716238272391,-500.0,0.00043835,30]
[327572309,1716238272401,-500.0,0.00043835,31]
[327572310,1716238272411,-500.0,0.00043835,32]
[327572311,1716238272420,-500.0,0.00043835,33]
[327572312,1716238272524,-160.55500157,0.00043835,34]
[327572313,1716238272579,-500.0,0.00043835,30]
[327572314,1716238272590,-500.0,0.00043835,30]
[327572315,1716238272600,-500.0,0.00043835,30]
[327572316,1716238272609,-569.77,0.00043835,30]
[327572317,1716238272619,-500.0,0.00043835,30]
[327572318,1716238272628,-550.91513393,0.00043835,30]
[327572319,1716238272638,-499.53,0.00043835,30]
[327572320,1716238272647,-1500.0,0.00043835,30]
[327572321,1716238272656,-1206.99,0.00043835,30]
[327572322,1716238272665,-500.0,0.00043835,30]
[327572323,1716238272676,-500.0,0.00043835,30]
[327572324,1716238272686,-500.0,0.00043835,30]
[327572325,1716238272695,-500.0,0.00043835,30]
[327572326,1716238272704,-645.85,0.00043835,30]
[327572327,1716238272716,-500.0,0.00043835,30]
[327572328,1716238272727,-601.33,0.00043835,30]
[327572329,1716238272737,-151.0,0.00043835,14]
[327572330,1716238272750,-500.0,0.00043835,30]
[327572331,1716238272759,-501.98732736,0.00043835,30]
[327572332,1716238272768,-500.0,0.00043835,30]
[327572333,1716238272777,-500.0,0.00043835,30]
[327572334,1716238272786,-500.0,0.00043835,30]
[327572335,1716238272795,-500.0,0.00043835,30]
[327572336,1716238272804,-503.78,0.00043835,30]
[327572337,1716238272814,-530.49,0.00043835,30]
[327572338,1716238272824,-1158.78,0.00043835,30]
[327572339,1716238272834,-500.0,0.00043835,30]
[327572340,1716238272844,-500.0,0.00043835,30]
[327572341,1716238272854,-200.0,0.00043835,30]
[327572342,1716238272865,-500.0,0.00043835,30]
[327572343,1716238272875,-837.08,0.00043835,30]
[327572344,1716238272884,-500.0,0.00043835,30]
[327572345,1716238272894,-500.0,0.00043835,30]
[327572346,1716238272906,-566.93,0.00043835,30]
[327572347,1716238272924,-500.0,0.00043835,30]
[327572348,1716238272943,-2000.0,0.00043835,30]
[327572349,1716238272952,-500.0,0.00043835,30]
[327572350,1716238272962,-606.0,0.00043835,30]
[327572351,1716238272971,-500.0,0.00043835,30]
[327572352,1716238272981,-500.0,0.00043835,30]
[327572353,1716238272992,-500.0,0.00043835,30]
[327572354,1716238273001,-500.0,0.00043835,30]
[327572355,1716238273011,-505.54066869,0.00043835,30]
[327572356,1716238273020,-562.29,0.00043835,30]
[327572357,1716238273030,-151.0,0.00043835,14]
[327572358,1716238273040,-500.0,0.00043835,30]
[327572359,1716238273049,-500.0,0.00043835,30]
[327572360,1716238273060,-518.12447405,0.00043835,30]
[327572361,1716238273069,-505.03,0.00043835,30]
[327572362,1716238273078,-500.0,0.00043835,30]
[327572363,1716238273089,-500.0,0.00043835,30]
[327572364,1716238273098,-500.0,0.00043835,30]
[327572365,1716238273108,-500.0,0.00043835,30]
[327572366,1716238273117,-500.0,0.00043835,30]
[327572367,1716238273127,-517.06892843,0.00043835,30]
[327572368,1716238273136,-500.0,0.00043835,30]
[327572369,1716238273145,-1047.78,0.00043835,30]
[327572370,1716238273154,-503.95853657,0.00043835,30]
[327572371,1716238273164,-500.0,0.00043835,30]
[327572372,1716238273174,-500.0,0.00043835,30]
[327572373,1716238273184,-500.0,0.00043835,30]
[327572374,1716238273193,-500.0,0.00043835,30]
[327572375,1716238273203,-500.0,0.00043835,30]
[327572376,1716238273212,-500.0,0.00043835,30]
[327572377,1716238273222,-522.25631653,0.00043835,30]
[327572378,1716238273232,-581.44806951,0.00043835,30]
[327572379,1716238273243,-500.0,0.00043835,30]
[327572380,1716238273252,-1257.33,0.00043835,30]
[327572381,1716238273261,-500.0,0.00043835,7]
[327572382,1716238273271,-666.5,0.00043835,30]
[327572383,1716238273280,-500.0,0.00043835,30]
[327572384,1716238273290,-500.0,0.00043835,30]
[327572385,1716238273299,-500.0,0.00043835,2]
[327572386,1716238273309,-500.0,0.00043835,2]
[327572387,1716238273318,-500.0,0.00043835,30]
[327572388,1716238273328,-447.12670949,0.00043835,2]
[327572389,1716238273337,-500.0,0.00043835,30]
[327572390,1716238273346,-500.0,0.00043835,30]
[327572391,1716238273357,-500.0,0.00043835,30]
[327572392,1716238273367,-500.0,0.00043835,30]
[327572393,1716238273376,-500.0,0.00043835,30]
[327572394,1716238273386,-500.0,0.00043835,30]
[327572395,1716238273395,-503.7412922,0.00043835,30]
[327572396,1716238273405,-1000.0,0.00043835,30]
[327572397,1716238273418,-500.0,0.00043835,30]
[327572398,1716238273428,-500.0,0.00043835,30]
[327572399,1716238273437,-500.0,0.00043835,30]
[327572400,1716238273447,-500.0,0.00043835,30]
[327572401,1716238273456,-500.0,0.00043835,30]
[327572402,1716238273465,-388.19700099,0.00043835,30]
[327572403,1716238273475,-500.0,0.00043835,30]
[327572404,1716238273484,-500.0,0.00043835,30]